[Event "GER-ch Youth-U12 2024"]
[Site "Willingen"]
[Date "2024.05.25"]
[Round "9"]
[White "Fass, Ben"]
[Black "Rinke, Alexander"]
[Result "1-0"]
[ECO "B10"]
[WhiteElo "1027"]
[BlackElo "1596"]
[Annotator "NA RC"]
[PlyCount "61"]
[EventDate "2022.06.05"]
[EventType "swiss"]
[EventRounds "9"]
[EventCountry "GER"]
[SourceTitle "playchess.com"]
[Source "ChessBase"]
[SourceQuality "1"]
[TimeControl "40/4500+30:900+30"]

1. e4 {[%emt 0:00:00]} c6 {[%emt 0:00:00]} 2. c4 {[%emt 0:00:00]} d5 {[%emt 0:00:00]} 3. cxd5 {[%emt 0:00:00]} cxd5 {[%emt 0:00:00]} 4. exd5 {[%emt 0:00:00]} Nf6 {[%emt 0:00:00]} 5. Bc4 {[%emt 0:00:00]} Nxd5 {[%emt 0:00:00]} 6. Bxd5 {[%emt 0:00:00]} Qxd5 {[%emt 0:00:00]} 7. Nc3 {[%emt 0:00:00]} Qd8 {[%emt 0:00:00]} 8. Nf3 {[%emt 0:00:00]} Bg4 {[%emt 0:00:00]} 9. O-O {[%emt 0:00:00]} e6 {[%emt 0:00:00]} 10. d4 {[%emt 0:00:00]} Bxf3 {[%emt 0:00:00]} 11. Qxf3 {[%emt 0:00:00]} Qxd4 {[%emt 0:00:00]} 12. Qxb7 {[%emt 0:00:00]} Be7 {[%emt 0:00:00]} 13. Qxa8 {[%emt 0:00:47]} O-O {[%emt 0:00:00]} 14. Be3 {[%emt 0:00:30]} Qb4 {[%emt 0:00:00]} 15. Rab1 {[%emt 0:03:43]} Nd7 {[%emt 0:00:00]} 16. Qxa7 {[%emt 0:01:14]} Ne5 {[%emt 0:00:00]} 17. a3 {[%emt 0:02:02]} Qh4 {[%emt 0:00:00]} 18. f3 {[%emt 0:03:26]} Bf6 {[%emt 0:00:07]} 19. Bf2 {[%emt 0:06:18]} Qg5 {[%emt 0:00:43]} 20. Qe3 {[%emt 0:01:40]} Qg6 {[%emt 0:00:20]} 21. Ne4 {[%emt 0:02:06]} Bd8 {[%emt 0:01:16]} 22. b4 {[%emt 0:02:53]} Bc7 {[%emt 0:00:42]} 23. a4 {[%emt 0:01:18]} Qh5 {[%emt 0:00:14]} 24. h3 {[%emt 0:06:16]} Rb8 {[%emt 0:01:10]} 25. h4 {[%emt 0:01:21]} Qg6 {[%emt 0:01:30]} 26. Qg5 {[%emt 0:01:35]} Qxg5 {[%emt 0:00:12]} 27. Nxg5 {[%emt 0:00:19]} Nc4 {[%emt 0:00:09]} 28. Rfc1 {[%emt 0:00:59]} Nd2 {[%emt 0:00:08]} 29. Rb2 {[%emt 0:00:58]} Bf4 {[%emt 0:00:23]} 30. Rcc2 {[%emt 0:03:05]} e5 {[%emt 0:01:08]} 31. Rxd2 {[%emt 0:02:59]} 1-0